fUST/lending_fUST_20240421
["ID","MTS","AMOUNT","RATE_DAILY","PERIOD"]
[323115117,1713677448387,-500.0,0.00021999,2]
[323115118,1713677448397,-500.0,0.00021999,2]
[323115119,1713677448407,-1329.91,0.00021999,2]
[323115120,1713677448418,-1329.91,0.00021999,2]
[323115121,1713677448427,-1329.91,0.00021999,2]
[323115122,1713677448436,-500.0,0.00021999,2]
[323115123,1713677448445,-319.68311335,0.00021999,2]
[323115124,1713677448454,-500.0,0.00021999,2]
[323115125,1713677448463,-500.0,0.00021999,2]
[323115126,1713677448473,-500.0,0.00021999,2]
[323115127,1713677448482,-6248.93,0.00021999,2]
[323115128,1713677448491,-6248.93,0.00021999,2]
[323115129,1713677448500,-6248.93,0.00021999,2]
[323115130,1713677448510,-6248.93,0.00021999,2]
[323115131,1713677448519,-29496.80092622,0.00022,2]
[323115132,1713677448529,-158.99683336,0.00022,2]
[323115133,1713677448538,-52665.179884,0.00022,2]
[323115134,1713677448572,-633.61732158,0.00022,2]
[323115135,1713677448583,-574.16906235,0.00022,2]
[323115136,1713677449319,-617.08932168,0.00021499,2]
[323115137,1713677449332,-151.0,0.00021599,2]
[323115138,1713677449344,-151.0,0.00021601,2]
[323115139,1713677449356,-151.0,0.00021601,2]
[323115140,1713677449367,-151.0,0.00021601,2]
[323115141,1713677449376,-151.0,0.00021602,2]
[323115142,1713677449386,-153.0,0.000219,2]
[323115143,1713677449395,-203.4958838,0.000219,2]
[323115144,1713677449404,-500.0,0.00021917,2]
[323115145,1713677449414,-500.0,0.00021917,2]
[323115146,1713677449423,-500.0,0.00021917,2]
[323115147,1713677449432,-6839.4975409,0.00022,2]
[323115148,1713677449443,-709.24712561,0.00022,2]
[323115149,1713677462067,3999.445043,1e-08,20]
[323115150,1713677476410,187.78740558,0.00019899,2]
[323115151,1713677506956,385.839099,0.00020764,2]
[323115153,1713677655772,250.0,0.0002069,2]
[323115155,1713677777590,297.41007628,0.00019899,2]
[323115158,1713678035824,426.494552,0.00020474,2]
[323115159,1713678038812,4337.19743473,0.0002,2]
[323115160,1713678069190,156.14905944,0.00019899,2]
[323115161,1713678078835,313.08569922,0.00019899,2]
[323115162,1713678079124,534.45033612,0.00019899,2]
[323115163,1713678086182,200.0,0.0002,2]
[323115164,1713678088072,1612.84975599,0.0002,2]
[323115165,1713678089265,155.53746627,0.0002,2]
[323115166,1713678092151,12169.20946709,0.0002,2]
[323115167,1713678099483,155.83228387,0.0002,2]
[323115168,1713678182710,155.12795047,0.0002,2]
[323115169,1713678192933,13523.6178276,0.00020361,2]
[323115170,1713678198734,195.49338163,0.0002,2]
[323115172,1713678224813,9563.28200328,0.0002,2]
[323115173,1713678242828,1277.68472737,0.0002,2]
[323115174,1713678252930,168.9548297,0.00019986,2]
[323115175,1713678291937,927.01787814,0.00020389,2]
[323115176,1713678305271,4846.0,0.00024373,35]
[323115177,1713678307181,4846.0,0.00024363,35]
[323115178,1713678307809,4846.0,0.00024353,35]
[323115179,1713678435605,24900.0,0.00020168,2]
[323115180,1713678440544,154.84515485,0.00020167,2]
[323115181,1713678441374,361.87683553,0.00020167,2]
[323115182,1713678577724,376.485244,0.00020046,2]
[323115183,1713678587911,927.01787814,0.00019987,2]
[323115184,1713678607017,1841.05144568,0.0002094,2]
[323115185,1713678607426,1841.05144566,0.0002094,2]
[323115186,1713678609416,1841.05144566,0.00020941,2]
[323115187,1713678611405,1841.05144566,0.00020941,2]
[323115188,1713678613541,1841.05144566,0.00020941,2]
[323115232,1713678632072,-623.53234901,0.00021031,2]
[323115234,1713678632082,-157.69768027,0.00021031,2]
[323115236,1713678632094,-400.0,0.00021031,2]
[323115238,1713678632103,-154.84515485,0.00021032,2]
[323115239,1713678632113,-154.84515485,0.00021032,2]
[323115242,1713678632123,-2578.64836318,0.00021032,2]
[323115244,1713678632138,-5285.22999149,0.00021032,2]
[323115246,1713678632148,-154.84515485,0.00021033,2]
[323115248,1713678632157,-154.84515485,0.00021033,2]
[323115250,1713678632168,-526.14121076,0.00021033,2]
[323115252,1713678632178,-1577.16491941,0.00021033,2]
[323115254,1713678632188,-689.18930425,0.00021033,2]
[323115256,1713678632198,-469.43131527,0.00021034,2]
[323115258,1713678632208,-154.84515485,0.00021034,2]
[323115260,1713678632217,-283.22889167,0.00021034,2]
[323115262,1713678632226,-51098.9969216,0.00021034,2]
[323115441,1713678638105,-883.42675349,0.0002103,2]
[323115442,1713678638115,-977.42371464,0.00021031,2]
[323115443,1713678638126,-189.12046412,0.00021031,2]
[323115444,1713678638140,-1489.75322658,0.00021031,2]
[323115445,1713678638152,-1877.41559284,0.00021031,2]
[323115446,1713678638161,-8036.86571942,0.00021034,2]
[323115447,1713678638171,-1311.22668928,0.00021035,2]
[323115448,1713678638181,-308.38118196,0.00021035,2]
[323115449,1713678638190,-161.96145842,0.00021035,2]
[323115450,1713678638202,-474.60169326,0.00021035,2]
[323115451,1713678638212,-673.29235126,0.00021035,2]
[323115452,1713678638221,-2586.79174796,0.00021035,2]
[323115453,1713678638231,-5799.27009605,0.00021035,2]
[323115454,1713678638240,-154.84515485,0.00021036,2]
[323115455,1713678638249,-2098.69136625,0.00021036,2]
[323115456,1713678638261,-241.42272,0.00021036,2]
[323115457,1713678638270,-204.08167779,0.00021036,2]
[323115458,1713678638279,-539.63707301,0.00021037,2]
[323115459,1713678638287,-354.6718789,0.00021037,2]
[323115460,1713678638297,-2774.01551629,0.00021037,2]
[323115461,1713678638306,-300.0,0.00021037,2]
[323115462,1713678638315,-300.0,0.00021037,2]
[323115463,1713678638324,-154.84515485,0.00021038,2]
[323115464,1713678638332,-468.2653797,0.00021038,2]
[323115465,1713678638341,-603.12026337,0.00021038,2]
[323115466,1713678638351,-408.71966924,0.00021038,2]
[323115467,1713678638360,-1090.08472256,0.00021038,2]
[323115468,1713678638369,-154.84515485,0.00021038,2]
[323115469,1713678638379,-154.84515485,0.00021039,2]
[323115470,1713678638390,-564.30547091,0.00021039,2]
[323115471,1713678638399,-154.84515485,0.00021039,2]
[323115472,1713678638410,-500.0,0.00021039,2]
[323115473,1713678638420,-500.0,0.00021039,2]
[323115474,1713678638429,-500.0,0.00021039,2]
[323115475,1713678638439,-178.64235398,0.00021039,2]
[323115476,1713678638448,-500.0,0.00021039,2]
[323115477,1713678638555,-500.0,0.00021039,2]
[323115478,1713678638564,-500.0,0.00021039,2]
[323115479,1713678638573,-500.0,0.00021039,2]
[323115480,1713678638582,-625.99163623,0.00021039,2]
[323115481,1713678638592,-534.50927869,0.00021039,2]
[323115482,1713678638601,-500.0,0.00021039,2]
[323115483,1713678638612,-500.0,0.00021039,2]
[323115484,1713678638621,-500.0,0.00021039,2]
[323115485,1713678638633,-651.92258694,0.00021039,2]
[323115486,1713678638642,-500.0,0.00021039,2]
[323115487,1713678638651,-500.0,0.00021039,2]
[323115488,1713678638660,-500.0,0.00021039,2]
[323115489,1713678638669,-72533.62668599,0.0002104,2]
[323115490,1713678638678,-361.87683553,0.0002104,2]
[323115491,1713678638688,-31285.28113,0.0002104,2]
[323115492,1713678638697,-735.57616226,0.00021053,2]
[323115493,1713678638706,-188.74567018,0.00021162,2]
[323115494,1713678638715,-6925.8273931,0.00021234,2]
[323115495,1713678638724,-6925.8273931,0.00021234,2]
[323115496,1713678638734,-6925.8273931,0.00021234,2]
[323115497,1713678638743,-6925.8273931,0.00021234,2]
[323115498,1713678638752,-154.86062544,0.00021462,2]
[323115499,1713678638762,-173.10065894,0.00021462,2]
[323115500,1713678638771,-677.78192917,0.00021462,2]
[323115501,1713678638780,-154.84515485,0.00021462,2]
[323115502,1713678638789,-207.7309784,0.00021462,2]
[323115503,1713678638799,-155.2206099,0.00021462,2]
[323115504,1713678638808,-1079.01568364,0.00021462,2]
[323115505,1713678638817,-244.39651997,0.00021462,2]
[323115506,1713678638826,-277.86971771,0.00021462,2]
[323115507,1713678638835,-154.84515485,0.00021462,2]
[323115508,1713678638844,-2126.51224034,0.00021463,2]
[323115509,1713678638853,-155.07042903,0.00021463,2]
[323115510,1713678638862,-18402.33226965,0.00021488,2]
[323115511,1713678638872,-206.61378525,0.00021587,2]
[323115512,1713678638881,-155.07660359,0.00021588,2]
[323115513,1713678638890,-155.08216337,0.00021588,2]
[323115514,1713678638899,-155.58264086,0.00021588,2]
[323115515,1713678638909,-155.47377049,0.00021588,2]
[323115516,1713678638918,-661.15486452,0.00021588,2]
[323115517,1713678638928,-155.45888017,0.00021588,2]
[323115518,1713678638937,-218.60544592,0.00021588,2]
[323115519,1713678638947,-552.42069654,0.00021588,2]
[323115520,1713678638956,-329.39846217,0.00021588,2]
[323115521,1713678638966,-204.39115608,0.00021588,2]
[323115522,1713678638975,-199.96958124,0.00021588,2]
[323115523,1713678638985,-167.47944015,0.00021589,2]
[323115524,1713678638995,-156.36272035,0.00021589,2]
[323115525,1713678639004,-234.1221445,0.00021589,2]
[323115526,1713678639014,-166.722068,0.0002159,2]
[323115527,1713678639024,-166.722068,0.0002159,2]
[323115528,1713678639036,-390.135278,0.0002159,2]
[323115529,1713678639047,-390.135278,0.0002159,2]
[323115530,1713678639056,-184.020604,0.0002159,2]
[323115531,1713678639065,-184.020604,0.0002159,2]
[323115532,1713678639075,-1937.611243,0.0002159,2]
[323115533,1713678639084,-1937.611243,0.0002159,2]
[323115534,1713678639097,-151.0,0.0002159,2]
[323115535,1713678639106,-79978.21508535,0.0002159,2]
[323115536,1713678639115,-153.0,0.000216,2]
[323115537,1713678639124,-153.0,0.000216,2]
[323115538,1713678639134,-203.4958838,0.000216,2]
[323115539,1713678639143,-155.4465171,0.000216,2]
[323115540,1713678639152,-153.0,0.000216,2]
[323115541,1713678639161,-153.0,0.000216,2]
[323115542,1713678639171,-153.0,0.000216,2]
[323115543,1713678639181,-153.0,0.000216,2]
[323115544,1713678639192,-153.0,0.000216,2]
[323115545,1713678639200,-203.4958838,0.000216,2]
[323115546,1713678639210,-153.0,0.000216,2]
[323115547,1713678639219,-203.4958838,0.000216,2]
[323115548,1713678639229,-212.48070635,0.00021601,2]
[323115549,1713678639238,-311.7710134,0.000217,2]
[323115550,1713678639248,-153.0,0.000217,2]
[323115551,1713678639257,-306.0,0.000217,2]
[323115552,1713678639269,-153.0,0.000217,2]
[323115553,1713678639278,-154.0383262,0.000217,2]
[323115554,1713678639286,-153.0,0.000217,2]
[323115555,1713678639295,-203.4958838,0.000217,2]
[323115556,1713678639303,-153.0,0.000217,2]
[323115557,1713678639312,-153.0,0.000217,2]
[323115558,1713678639321,-153.0,0.000217,2]
[323115559,1713678639330,-153.3583325,0.000217,2]
[323115560,1713678639339,-203.4958838,0.000217,2]
[323115561,1713678639349,-153.0,0.000217,2]
[323115562,1713678639358,-153.0,0.000217,2]
[323115563,1713678639367,-153.0,0.000217,2]
[323115564,1713678639376,-153.0,0.000217,2]
[323115565,1713678639386,-153.0,0.000217,2]
[323115566,1713678639394,-153.0,0.000217,2]
[323115567,1713678639404,-243.958863,0.000217,2]
[323115568,1713678639413,-784.09852565,0.00021892,2]
[323115569,1713678639423,-153.0,0.000219,2]
[323115570,1713678639433,-153.0,0.000219,2]
[323115571,1713678639442,-153.0,0.000219,2]
[323115572,1713678639453,-153.0,0.000219,2]
[323115573,1713678639462,-153.0,0.000219,2]
[323115574,1713678639471,-153.0,0.000219,2]
[323115575,1713678639480,-203.4958838,0.000219,2]
[323115576,1713678639489,-272.37935465,0.00021915,2]
[323115577,1713678639499,-521.10599486,0.00021915,2]
[323115578,1713678639509,-157.5375994,0.00021915,2]
[323115579,1713678639520,-155.09215639,0.00021915,2]
[323115580,1713678639529,-30835.31474603,0.00021916,2]
[323115594,1713678641112,-247.12439728,0.0002103,2]
[323115595,1713678641121,-193.52697819,0.0002103,2]
[323115596,1713678641131,-13654.83684804,0.00021916,2]
[323115597,1713678641140,-151.0,0.00021916,2]
[323115598,1713678641236,-510.49618961,0.00021917,2]
[323115599,1713678641247,-500.0,0.00021917,2]
[323115600,1713678641257,-500.0,0.00021917,2]
[323115601,1713678641267,-500.0,0.00021917,2]
[323115602,1713678641276,-500.0,0.00021917,2]
[323115603,1713678641285,-500.0,0.00021917,2]
[323115604,1713678641295,-500.0,0.00021917,2]
[323115605,1713678641304,-500.0,0.00021917,2]
[323115606,1713678641313,-500.0,0.00021917,2]
[323115607,1713678641323,-502.10853275,0.00021917,2]
[323115608,1713678641334,-502.88652083,0.00021917,2]
[323115609,1713678641343,-501.53007906,0.00021917,2]
[323115610,1713678641352,-513.3074354,0.00021917,2]
[323115611,1713678641362,-500.0,0.00021917,2]
[323115612,1713678641371,-500.0,0.00021917,2]
[323115613,1713678641380,-500.0,0.00021917,2]
[323115614,1713678641390,-508.85545054,0.00021917,2]
[323115615,1713678641399,-500.0,0.00021917,2]
[323115616,1713678641408,-399.89829206,0.00021917,2]
[323115617,1713678641417,-519.48,0.00021917,2]
[323115618,1713678641427,-509.16598211,0.00021917,2]
[323115619,1713678641435,-500.0,0.00021917,2]
[323115620,1713678641444,-151.0,0.00021917,2]
[323115621,1713678641454,-884.71,0.00021917,2]
[323115622,1713678641463,-500.0,0.00021917,2]
[323115623,1713678641472,-500.0,0.00021917,2]
[323115624,1713678641481,-500.0,0.00021917,2]
[323115625,1713678641490,-500.0,0.00021917,2]
[323115626,1713678641499,-500.0,0.00021917,2]
[323115627,1713678641508,-500.0,0.00021917,2]
[323115628,1713678641522,-500.0,0.00021917,2]
[323115629,1713678641531,-523.06648854,0.00021917,2]
[323115630,1713678641540,-501.10625939,0.00021917,2]
[323115631,1713678641549,-500.0,0.00021917,2]
[323115632,1713678641559,-500.0,0.00021917,2]
[323115633,1713678641568,-500.0,0.00021917,2]
[323115634,1713678641577,-500.0,0.00021917,2]
[323115635,1713678641587,-558.97820698,0.00021917,2]
[323115636,1713678641597,-500.0,0.00021917,2]
[323115637,1713678641606,-500.0,0.00021917,2]
[323115638,1713678641615,-535.31490083,0.00021917,2]
[323115639,1713678641624,-511.7287053,0.00021917,2]
[323115640,1713678641634,-500.0,0.00021917,2]
[323115641,1713678641647,-151.0,0.00021917,2]
[323115642,1713678641657,-151.0,0.00021917,2]
[323115643,1713678641667,-151.0,0.00021917,2]
[323115644,1713678641677,-554.13,0.00021917,2]
[323115645,1713678641688,-554.13,0.00021917,2]
[323115646,1713678641697,-151.0,0.00021917,2]
[323115647,1713678641709,-554.13,0.00021917,2]
[323115648,1713678641719,-554.13,0.00021917,2]
[323115649,1713678641729,-554.13,0.00021917,2]
[323115650,1713678641739,-500.0,0.00021917,2]
[323115651,1713678641748,-554.13,0.00021917,2]
[323115652,1713678641758,-554.13,0.00021917,2]
[323115653,1713678641768,-554.13,0.00021917,2]
[323115654,1713678641777,-554.13,0.00021917,2]
[323115655,1713678641786,-554.13,0.00021917,2]
[323115656,1713678641796,-554.13,0.00021917,2]
[323115657,1713678641805,-554.13,0.00021917,2]
[323115658,1713678641814,-554.13,0.00021917,2]
[323115659,1713678641823,-554.13,0.00021917,2]
[323115660,1713678641834,-554.13,0.00021917,2]
[323115661,1713678641843,-554.13,0.00021917,2]
[323115662,1713678641852,-554.13,0.00021917,2]
[323115663,1713678641861,-554.13,0.00021917,2]
[323115664,1713678641871,-151.0,0.00021917,2]
[323115665,1713678641880,-279.480816,0.00021917,2]
[323115666,1713678641889,-500.0,0.00021917,2]
[323115667,1713678641899,-500.0,0.00021917,2]
[323115668,1713678641908,-500.0,0.00021917,2]
[323115669,1713678641917,-500.0,0.00021917,2]
[323115670,1713678641927,-500.0,0.00021917,2]
[323115671,1713678641937,-500.0,0.00021917,2]
[323115672,1713678641948,-500.0,0.00021917,2]
[323115673,1713678641959,-521.03076865,0.00021917,2]
[323115674,1713678641970,-500.0,0.00021917,2]
[323115675,1713678641980,-515.1686891,0.00021917,2]
[323115676,1713678641991,-500.0,0.00021917,2]
[323115677,1713678642001,-527.08746567,0.00021917,2]
[323115678,1713678642011,-151.0,0.00021917,2]
[323115679,1713678642024,-530.58754308,0.00021917,2]
[323115680,1713678642033,-208.83429179,0.00021917,2]
[323115681,1713678642042,-151.0,0.00021917,2]
[323115682,1713678642052,-626.95,0.00021917,2]
[323115683,1713678642061,-151.0,0.00021917,2]
[323115684,1713678642071,-151.0,0.00021917,2]
[323115685,1713678642080,-500.0,0.00021917,2]
[323115686,1713678642092,-151.0,0.00021917,2]
[323115687,1713678642102,-151.0,0.00021917,2]
[323115688,1713678642112,-151.0,0.00021917,2]
[323115689,1713678642121,-457.47137992,0.00021917,2]
[323115690,1713678642136,-42.52862008,0.00021917,2]
[323115691,1713678642145,-500.0,0.00021917,2]
[323115692,1713678642155,-500.0,0.00021917,2]
[323115693,1713678642165,-534.54766174,0.00021917,2]
[323115694,1713678642175,-798.6,0.00021917,2]
[323115695,1713678642185,-921.31,0.00021917,2]
[323115696,1713678642194,-151.0,0.00021917,2]
[323115697,1713678642203,-500.0,0.00021917,2]
[323115698,1713678642213,-151.0,0.00021917,2]
[323115699,1713678642222,-151.0,0.00021917,2]
[323115700,1713678642232,-151.0,0.00021917,2]
[323115701,1713678642241,-500.0,0.00021917,2]
[323115702,1713678642250,-151.0,0.00021917,2]
[323115703,1713678642260,-500.0,0.00021917,2]
[323115704,1713678642272,-255.75075,0.00021917,2]
[323115705,1713678642281,-639.60172389,0.00021917,2]
[323115706,1713678642291,-1167.43,0.00021917,2]
[323115707,1713678642301,-468.19580994,0.00021917,2]
[323115708,1713678642313,-31.80419006,0.00021917,2]
[323115709,1713678642322,-1527.42,0.00021917,2]
[323115710,1713678642331,-500.0,0.00021917,2]
[323115711,1713678642341,-500.0,0.00021917,2]
[323115712,1713678642350,-769.11,0.00021917,2]
[323115713,1713678642359,-500.0,0.00021917,2]
[323115714,1713678642368,-500.0,0.00021917,2]
[323115715,1713678642377,-500.0,0.00021917,2]
[323115716,1713678642386,-500.0,0.00021917,2]
[323115717,1713678642396,-500.0,0.00021917,2]
[323115718,1713678642405,-500.0,0.00021917,2]
[323115719,1713678642413,-1015.41,0.00021917,2]
[323115720,1713678642423,-500.0,0.00021917,2]
[323115721,1713678642433,-500.0,0.00021917,2]
[323115722,1713678642441,-319.49675565,0.00021917,2]
[323115723,1713678642450,-500.0,0.00021917,2]
[323115724,1713678642459,-500.0,0.00021917,2]
[323115725,1713678642468,-500.0,0.00021917,2]
[323115727,1713678642478,-1939.3,0.00021917,2]
[323115728,1713678642487,-167.31093211,0.00021917,2]
[323115736,1713678643290,-154.84515485,0.0002103,2]
[323115737,1713678643300,-151.0,0.00021916,2]
[323115738,1713678643309,-199.10116782,0.00021917,2]
[323115739,1713678643318,-227.37917455,0.00021917,2]
[323115743,1713678663614,815.0,0.00024921,35]
[323115744,1713678664202,815.0,0.00024911,35]
[323115745,1713678664848,815.0,0.00024901,35]
[323115746,1713678681586,387.32073399,0.00019817,2]
[323115748,1713678712056,268.68794654,0.00020937,2]
[323115751,1713678792316,18402.33226965,0.00020934,2]
[323115752,1713678869590,44999.0,1e-08,30]
[323115753,1713678872425,188.74567018,0.00020924,2]
[323115754,1713678910880,24900.0,0.00020011,2]
[323115755,1713678945042,329.5063646,0.00021,2]
[323115756,1713678945350,154.84515485,0.00021,2]
[323115757,1713678945866,157.69768027,0.00021,2]
[323115758,1713678946252,154.84515485,0.00021,2]
[323115759,1713678946926,474.60169326,0.00021,2]
[323115760,1713678947951,154.84515485,0.00021,2]
[323115761,1713678949040,189.12046412,0.00021,2]
[323115762,1713678949449,1577.16491941,0.00021,2]
[323115763,1713678950275,1877.41559284,0.00021,2]
[323115764,1713678951449,2098.69136625,0.00021,2]
[323115765,1713678953021,673.29235126,0.00021,2]
[323115766,1713678953683,154.84515485,0.00021,2]
[323115767,1713678954859,283.22889167,0.00021,2]
[323115768,1713678955651,603.12026337,0.00021,2]
[323115769,1713678956523,354.6718789,0.00021,2]
[323115770,1713678958169,564.30547091,0.00021,2]
[323115771,1713678959276,408.71966924,0.00021,2]
[323115772,1713678959423,539.63707301,0.00021,2]
[323115773,1713678959476,2774.01551629,0.00021,2]
[323115774,1713678960603,300.0,0.00021,2]
[323115775,1713678960697,705.40305203,0.00021,2]
[323115776,1713678960816,161.96145842,0.00021,2]
[323115777,1713678961416,154.84515485,0.00021,2]
[323115778,1713678961702,468.2653797,0.00021,2]
[323115779,1713678962224,300.0,0.00021,2]
[323115780,1713678963384,2586.79174796,0.00021,2]
[323115781,1713678963451,31285.28113,0.00021,2]
[323115782,1713678967121,1090.08472256,0.00021,2]
[323115783,1713678969879,308.38118196,0.00021,2]
[323115784,1713678970378,154.84515485,0.00021,2]
[323115785,1713678972459,2127.2736357,0.00021,2]
[323115786,1713678973559,526.14121076,0.00021,2]
[323115787,1713678975225,205.98680094,0.00021,2]
[323115788,1713678976141,241.42272,0.00021,2]
[323115789,1713678977344,154.84515485,0.00021,2]
[323115790,1713678982967,540.77143986,0.00019817,2]
[323115791,1713678984055,1087.28742838,0.00021,2]
[323115792,1713678984312,623.53234901,0.00021,2]
[323115793,1713678984544,361.87683553,0.00021,2]
[323115794,1713678985579,247.12439728,0.00021,2]
[323115795,1713678986429,154.84515485,0.00021,2]
[323115796,1713678989278,154.84515485,0.00020999,2]
[323115797,1713678990368,207.80665271,0.00020999,2]
[323115798,1713678990574,1311.22668928,0.00021,2]
[323115799,1713678993247,500.0,0.00021,2]
[323115800,1713678993277,178.64235398,0.00021,2]
[323115801,1713678993304,500.0,0.00021,2]
[323115802,1713678993337,500.0,0.00021,2]
[323115803,1713678993364,500.0,0.00021,2]
[323115804,1713678993392,500.0,0.00021,2]
[323115805,1713678993426,500.0,0.00021,2]
[323115806,1713678993454,428.18119218,0.00021,2]
[323115807,1713678993482,500.0,0.00021,2]
[323115808,1713678993513,500.0,0.00021,2]
[323115809,1713678993541,500.0,0.00021,2]
[323115810,1713678993570,500.0,0.00021,2]
[323115811,1713678993606,500.0,0.00021,2]
[323115812,1713678993639,500.0,0.00021,2]
[323115813,1713678993772,500.0,0.00021,2]
[323115814,1713678993802,500.0,0.00021,2]
[323115815,1713678993830,500.0,0.00021,2]
[323115816,1713678993859,500.0,0.00021,2]
[323115817,1713678993888,500.0,0.00021,2]
[323115818,1713678993926,500.0,0.00021,2]
[323115819,1713678993954,500.0,0.00021,2]
[323115820,1713678993983,500.0,0.00021,2]
[323115821,1713678994011,500.0,0.00021,2]
[323115822,1713678994040,476.67031426,0.00021,2]
[323115823,1713678994187,500.0,0.00021,2]
[323115824,1713678994216,500.0,0.00021,2]
[323115825,1713678994249,500.0,0.00021,2]
[323115826,1713678994283,500.0,0.00021,2]
[323115827,1713678994314,500.0,0.00021,2]
[323115828,1713678994346,500.0,0.00021,2]
[323115829,1713678994374,500.0,0.00021,2]
[323115830,1713678994403,213.03840077,0.00021,2]
[323115831,1713678994432,500.0,0.00021,2]
[323115832,1713678994461,500.0,0.00021,2]
[323115833,1713678994494,500.0,0.00021,2]
[323115834,1713678994522,500.0,0.00021,2]
[323115835,1713678997144,154.84515485,0.00020998,2]
[323115836,1713678997460,179.52083429,0.00020901,2]
[323115837,1713678997844,1550.19478705,0.00020999,2]
[323115838,1713679000333,977.42371464,0.00021,2]
[323115839,1713679001778,173.16029928,0.00021,2]
[323115840,1713679004923,977.42371464,0.00021,2]
[323115841,1713679005746,1489.75322658,0.00021,2]
[323115842,1713679007835,5799.27009605,0.00021,2]
[323115843,1713679010249,1489.75322658,0.00021,2]
[323115844,1713679012335,5799.27009605,0.00021,2]
[323115845,1713679019498,189.12046412,0.00021,2]
[323115846,1713679020361,157.69768027,0.00021,2]
[323115847,1713679020577,300.0,0.00021,2]
[323115848,1713679020665,204.08167779,0.00021,2]
[323115849,1713679021099,808.15085291,0.00021,2]
[323115850,1713679022208,59135.86264102,0.00021,2]
[323115851,1713679023808,300.0,0.00021,2]
[323115852,1713679024654,3341.0,0.00024373,35]
[323115853,1713679025466,3341.0,0.00024363,35]
[323115854,1713679025527,673.29235126,0.00021,2]
[323115855,1713679027013,3341.0,0.00024353,35]
[323115856,1713679027043,154.84515485,0.00021,2]
[323115857,1713679027367,283.22889167,0.00021,2]
[323115858,1713679028073,1577.16491941,0.00021,2]
[323115859,1713679029025,354.6718789,0.00021,2]
[323115860,1713679029444,474.60169326,0.00021,2]
[323115861,1713679029677,72533.62668599,0.00021,2]
[323115862,1713679029956,2774.01551629,0.00021,2]
[323115863,1713679031778,408.71966924,0.00020999,2]
[323115864,1713679032467,193.52697819,0.00020999,2]
[323115865,1713679032670,564.30547091,0.00020999,2]
[323115866,1713679035255,161.96145842,0.00020999,2]
[323115867,1713679038284,603.12026337,0.00021,2]
[323115868,1713679038786,1877.41559284,0.00021,2]
[323115869,1713679062962,361.87683553,0.00021,2]
[323115870,1713679080631,300.0,0.00021,2]
[323115871,1713679083447,300.0,0.00021,2]
[323115872,1713679099954,474.60169326,0.00021,2]
[323115873,1713679104524,1577.16491941,0.00021,2]
[323115874,1713679105972,262.24652715,0.00020815,2]
[323115875,1713679106650,154.84515485,0.00021,2]
[323115876,1713679107274,977.42371464,0.00021,2]
[323115877,1713679108200,72533.62668599,0.00021,2]
[323115878,1713679111190,564.30547091,0.00021,2]
[323115879,1713679114305,408.71966924,0.00021,2]
[323115880,1713679115300,1877.41559284,0.00021,2]
[323115881,1713679119761,161.96145842,0.00021,2]
[323115882,1713679120655,603.12026337,0.00021,2]
[323115883,1713679140570,300.0,0.00021,2]
[323115884,1713679142635,300.0,0.00021,2]